bitfinex/quotes_ETHUSD_20240810
["timestamp","ask_amount","ask_price","bid_price","bid_amount"]
[1723312097265,0.07445527,2609.7,2609.2,4.30834]
[1723312100108,0.07445527,2609.7,2609.2,1.91624]
[1723312100325,2.2657,2609.6,2609.1,1.91636]
[1723312100626,1.99052527,2609.5,2608.9,1.91651]
[1723312101477,0.07445527,2609.5,2608.8,1.91653]
[1723312101692,0.42562253,2609.4,2608.8,1.91653]
[1723312101891,0.07445527,2609.3,2608.8,1.91653]
[1723312102326,1.99067527,2609.3,2608.7,2.3921]
[1723312102527,0.07445527,2609.2,2608.7,4.30869]
[1723312103386,0.07445527,2609.2,2608.8,1.91654]
[1723312103605,0.07445527,2609.2,2608.7,1.91659]
[1723312103924,2.34015527,2609.2,2608.7,1.91659]
[1723312104217,2.80835505,2609.2,2608.7,1.91659]
[1723312105425,0.06277418,2609.1,2608.7,1.91659]
[1723312106222,1.91653,2608.9,2608.3,4.30899]
[1723312106524,2.2657,2608.8,2608.3,1.91689]
[1723312106729,0.07445527,2608.7,2608.3,1.91689]
[1723312107092,0.06239851,2608.6,2608.3,1.91689]
[1723312107489,0.06239851,2608.6,2608.5,1.91679]
[1723312107696,0.06239851,2608.6,2608.5,4.30889]
[1723312107919,0.07445527,2608.9,2608.5,4.30889]
[1723312107920,0.07445527,2608.9,2608.6,1.9167]
[1723312108730,0.07445527,2609.1,2608.6,1.9167]
[1723312108934,0.07445527,2609.1,2608.5,4.30889]
[1723312109337,0.07445527,2609.1,2608.5,1.91679]
[1723312109507,2.3718,2609.0,2608.5,1.91679]
[1723312109719,0.07445527,2608.9,2608.5,1.91679]
[1723312112249,0.07445527,2608.9,2608.3,3.83381]
[1723312112402,0.07445527,2608.9,2608.4,1.91686]
[1723312115632,0.07445527,2608.9,2608.3,3.8338]
[1723312115840,0.07445527,2608.9,2608.4,1.91687]
[1723312118866,9.6718,2609.2,2608.6,2.4043]
[1723312119072,9.6718,2609.2,2608.9,1.91645]
[1723312119073,7.3,2609.2,2608.9,1.91645]
[1723312119854,7.3,2609.2,2608.7,3.83324]
[1723312120213,7.3,2609.2,2608.8,1.91657]
[1723312120414,0.13515965,2609.1,2608.8,1.91657]
[1723312120654,0.06070438,2609.1,2608.8,1.91657]
[1723312120821,0.06070438,2609.1,2608.9,1.9165]
[1723312123159,0.07445527,2609.4,2608.9,1.9165]
[1723312123360,0.06058925,2609.0,2608.9,1.9165]
[1723312123560,0.07445527,2609.4,2608.9,1.9165]
[1723312123733,0.06058925,2609.0,2608.9,1.9165]
[1723312123934,3.07445527,2609.4,2608.9,1.9165]
[1723312124130,0.06058925,2609.0,2608.9,1.9165]
[1723312124336,0.06058925,2609.0,2608.5,1.91676]
[1723312124672,0.06047411,2608.9,2608.5,1.91676]
[1723312125421,1.97700411,2608.9,2608.3,4.32124]
[1723312125542,1.91667,2608.7,2608.1,1.91705]
[1723312125865,0.13478189,2608.6,2608.1,1.91705]
[1723312127281,2.3718,2608.5,2608.1,1.91705]
[1723312127486,0.07445527,2608.4,2608.1,1.91705]
[1723312127976,0.05998109,2608.3,2608.1,1.91705]
[1723312131253,1.97698109,2608.3,2607.7,1.91735]
[1723312131586,1.97698109,2608.3,2607.5,1.9175]
[1723312131587,0.07445527,2608.2,2607.5,1.91749]
[1723312131783,2.2542,2608.1,2607.5,1.91749]
[1723312131963,0.07445527,2608.0,2607.5,1.91749]
[1723312132288,0.05955534,2607.9,2607.5,1.91749]
[1723312132503,0.05955534,2607.9,2607.4,0.3574951]
[1723312132661,0.07445527,2607.8,2607.3,2.416981]
[1723312132865,2.2542,2607.7,2607.3,1.91764]
[1723312133077,0.07445527,2607.6,2607.3,1.91764]
[1723312133453,0.05922421,2607.5,2607.3,1.91764]
[1723312134286,2.32865527,2607.7,2607.3,1.91764]
[1723312134489,0.05910896,2607.4,2607.3,1.91764]
[1723312135055,2.32865527,2607.7,2607.3,1.91764]
[1723312135255,0.05910896,2607.4,2607.3,1.91764]
[1723312135484,2.32865527,2607.7,2607.3,1.91764]
[1723312135797,0.05910896,2607.4,2607.3,1.91764]
[1723312136291,2.32865527,2607.7,2607.3,1.91764]
[1723312136583,0.05910896,2607.4,2607.3,1.91764]
[1723312136787,2.32865527,2607.7,2607.3,1.91764]
[1723312136951,0.05910896,2607.4,2607.3,1.91764]
[1723312137153,2.32865527,2607.7,2607.3,1.91764]
[1723312137377,0.05910896,2607.4,2607.3,1.91764]
[1723312137579,2.32865527,2607.7,2607.3,1.91764]
[1723312137778,0.05910896,2607.4,2607.3,1.91764]
[1723312138382,2.32865527,2607.7,2607.3,1.91764]
[1723312138991,0.05933946,2607.6,2607.3,1.91764]
[1723312139289,0.05933946,2607.6,2607.3,3.83527]
[1723312139467,0.05933946,2607.6,2607.4,1.91761]
[1723312139787,0.05933946,2607.6,2607.5,1.91754]
[1723312140285,5.2542,2608.4,2607.6,4.20684]
[1723312140586,5.2542,2608.4,2607.8,1.91726]
[1723312140893,5.2542,2608.4,2607.6,6.12425]
[1723312141067,0.07445527,2607.9,2607.4,1.91757]
[1723312141259,1.99171527,2607.9,2607.2,1.91771]
[1723312141857,1.99171527,2607.9,2607.2,3.83541]
[1723312142655,1.99171527,2607.9,2607.3,1.91768]
[1723312142857,1.99171527,2607.9,2607.4,1.91761]
[1723312143295,3.4110188,2607.9,2607.4,1.91761]
[1723312145593,3.4110188,2607.9,2607.2,1.9177]
[1723312145796,2.2542,2607.8,2607.2,1.9177]
[1723312145994,0.07445527,2607.7,2607.2,1.9177]
[1723312148766,0.07445527,2607.7,2607.2,3.83541]
[1723312149788,0.07445527,2607.7,2607.3,1.158]
[1723312150567,0.05906403,2607.6,2607.3,1.158]
[1723312151069,0.05906403,2607.6,2607.3,3.07567]
[1723312151271,0.05906403,2607.6,2607.3,3.575007]
[1723312152227,0.05906403,2607.6,2607.3,3.07567]
[1723312155716,0.05906403,2607.6,2607.5,1.158]
[1723312156032,3.0,2607.9,2607.5,3.0755]
[1723312156205,0.05905145,2607.6,2607.5,3.0755]
[1723312156401,3.0,2607.9,2607.5,3.0755]
[1723312156897,0.0592838,2607.8,2607.5,3.0755]
[1723312157730,0.0592838,2607.8,2607.5,1.95935617]
[1723312157893,0.0592838,2607.8,2607.6,1.91742]
[1723312158094,0.0592838,2607.8,2607.6,3.83484]
[1723312158592,0.0592838,2607.8,2607.6,1.91742]
[1723312158804,0.0592838,2607.8,2607.7,1.91739]
[1723312159392,0.0592838,2607.8,2607.6,1.91742]
[1723312159632,0.0592838,2607.8,2607.7,1.91739]
[1723312159993,7.3,2608.0,2607.7,1.91739]
[1723312160489,0.05713687,2607.9,2607.7,1.91739]
[1723312160933,0.05713687,2607.9,2607.6,2.64207]
[1723312161108,0.05713687,2607.9,2607.6,3.83483]
[1723312162009,2.41825527,2608.1,2607.6,3.83483]
[1723312162205,0.05702165,2607.8,2607.6,3.83483]
[1723312162731,0.05690641,2607.7,2607.6,1.91741]
[1723312163030,2.41825527,2608.1,2607.6,1.91741]
[1723312163233,0.05686004,2607.7,2607.6,1.91741]
[1723312163944,2.41825527,2608.1,2607.6,1.91741]
[1723312164124,0.05686004,2607.7,2607.6,1.91741]
[1723312164298,2.41825527,2608.1,2607.6,1.91741]
[1723312164499,0.05720572,2608.0,2607.6,1.91741]
[1723312167508,3.05720572,2608.0,2607.6,1.91741]
[1723312167711,3.13166099,2608.0,2607.6,1.91741]
[1723312167964,5.78810809,2608.0,2607.5,1.158]
[1723312168110,4.40639,2607.9,2607.3,1.158]
[1723312168315,0.13144186,2607.8,2607.3,1.158]
[1723312168715,0.13144186,2607.8,2607.2,1.91771]
[1723312169023,4.40668,2607.5,2607.1,1.158]
[1723312169229,0.07445527,2607.4,2607.1,1.158]
[1723312169440,0.13108843,2607.4,2607.1,1.158]
[1723312170558,0.05663316,2607.4,2607.1,1.158]
[1723312170761,0.05663316,2607.4,2607.1,1.709944]
[1723312171353,0.05663316,2607.4,2607.3,7.44058]
[1723312171659,7.3,2607.8,2607.3,5.52289]
[1723312171858,7.3,2607.8,2607.5,3.07552]
[1723312172063,0.05673811,2607.7,2607.5,3.07552]
[1723312172566,0.05662287,2607.6,2607.5,3.07552]
[1723312173059,7.3,2607.8,2607.5,3.07552]
[1723312173246,0.05662287,2607.6,2607.5,3.07552]
[1723312173761,3.0,2607.9,2607.5,3.07552]
[1723312174056,0.05662287,2607.6,2607.5,3.07552]
[1723312174270,3.0,2607.9,2607.5,3.07552]
[1723312174430,0.05662287,2607.6,2607.5,1.91752]
[1723312174637,3.0,2607.9,2607.5,1.91752]
[1723312175154,0.05685335,2607.8,2607.5,1.91752]
[1723312176565,0.05685335,2607.8,2607.3,5.52284]
[1723312176741,0.13130862,2607.8,2607.3,5.52284]
[1723312177263,0.13130862,2607.8,2607.3,3.07564]
[1723312177832,0.13130862,2607.8,2607.4,1.91761]
[1723312178577,0.05685335,2607.8,2607.5,1.91753]
[1723312179263,0.05685335,2607.8,2607.6,1.91746]
[1723312179477,0.07445527,2608.0,2607.5,2.661567]
[1723312179781,0.05696857,2607.9,2607.5,1.91753]
[1723312180681,0.05696857,2607.9,2607.5,3.07553]
[1723312181746,0.05696857,2607.9,2607.5,4.99301]
[1723312181943,0.05696857,2607.9,2607.5,3.07548]
[1723312182378,0.05696857,2607.9,2607.5,4.99298]
[1723312182761,0.05696857,2607.9,2607.5,3.07548]
[1723312183786,0.05696857,2607.9,2607.5,4.99297]
[1723312184550,0.05696857,2607.9,2607.5,3.07548]
[1723312185159,0.05696857,2607.9,2607.5,4.99298]
[1723312187675,0.05696857,2607.9,2607.8,1.91732]
[1723312187889,7.3,2608.2,2607.8,4.36452]
[1723312188098,0.05713787,2608.1,2607.8,2.4472]
[1723312188695,0.60085039,2608.4,2607.8,2.4472]
[1723312189204,0.05738896,2608.3,2607.8,2.4472]
[1723312189360,0.05738896,2608.3,2607.9,1.91723]
[1723312194273,3.58448417,2608.3,2607.7,3.07533]
[1723312194475,7.30948,2608.2,2607.5,3.07549]
[1723312194665,0.13165333,2608.1,2607.6,1.91742]
[1723312194992,0.13165333,2608.1,2607.7,1.91738]
[1723312195499,0.13165333,2608.1,2607.6,1.91744]
[1723312197364,0.05719806,2608.1,2607.7,3.83473]
[1723312197674,0.05719806,2608.1,2607.7,1.91734]
[1723312201788,1.97432806,2608.1,2607.5,3.07548]
[1723312202018,0.05719806,2608.1,2607.6,1.91746]
[1723312202918,0.13165333,2608.1,2607.6,1.91746]
[1723312208013,0.13165333,2608.1,2607.5,3.07548]
[1723312208227,0.13165333,2608.1,2607.5,4.99298]
[1723312209228,0.13165333,2608.1,2607.5,4.99297]
[1723312210408,0.13165333,2608.1,2607.5,3.07548]
[1723312211032,0.13165333,2608.1,2607.5,4.99297]
[1723312211233,2.04875333,2608.1,2607.5,3.07548]
[1723312211728,0.13165333,2608.1,2607.5,3.07548]
[1723312212032,0.13165333,2608.1,2607.8,4.18048]
[1723312212033,0.05719806,2608.1,2607.8,4.18048]
[1723312212232,0.05719806,2608.1,2607.8,4.25716733]
[1723312212392,3.0,2608.3,2607.8,4.2571653]
[1723312212597,1.38306479,2608.2,2608.1,1.9171]
[1723312212797,0.05606608,2608.2,2608.1,1.9171]
[1723312213092,3.0,2608.2,2607.9,3.07519]
[1723312213293,0.05570335,2608.1,2608.0,1.91716]
[1723312213497,3.67530566,2608.4,2608.0,1.91716]
[1723312213695,1.38289502,2608.3,2608.0,1.91716]
[1723312213942,0.05593377,2608.3,2608.0,1.91716]
[1723312217226,0.05593377,2608.3,2607.9,1.158]
[1723312218408,0.05593377,2608.3,2607.9,3.0752]
[1723312218612,0.05593377,2608.3,2607.9,3.8084343]
[1723312218817,0.05593377,2608.3,2607.9,3.0752]
[1723312220438,0.05593377,2608.3,2607.9,1.158]
[1723312220644,1.32700042,2608.2,2607.9,3.07524]
[1723312220847,0.05593377,2608.3,2607.9,3.07524]
[1723312221048,0.05570335,2608.1,2607.9,3.07524]
[1723312221343,3.67530566,2608.4,2607.9,3.07524]
[1723312221344,0.05558812,2608.0,2607.9,3.07524]
[1723312221544,3.67530566,2608.4,2607.9,3.07524]
[1723312221726,2.67214749,2608.3,2607.9,3.07524]
[1723312221927,4.32700115,2608.2,2607.9,3.07524]
[1723312222122,0.05570335,2608.1,2607.9,3.07524]
[1723312222332,3.60085039,2608.4,2607.9,3.07524]
[1723312222529,1.38289274,2608.3,2607.9,3.07524]
[1723312222730,0.05593377,2608.3,2607.9,3.07524]
[1723312226473,0.05593377,2608.3,2608.2,4.18023]
[1723312227023,7.3,2608.5,2608.2,4.18023]
[1723312227267,0.05604488,2608.3,2608.2,4.18023]
[1723312227570,0.05604488,2608.3,2608.0,1.91713]
[1723312227777,0.05604488,2608.3,2607.9,2.98877]
[1723312229536,0.05604488,2608.3,2607.9,4.90601]
[1723312231848,0.09063425,2608.3,2607.9,4.90601]
[1723312233648,0.09063425,2608.3,2608.0,1.91715]
[1723312234262,7.3,2608.5,2608.3,2.4925]
[1723312234566,7.3,2608.5,2608.3,4.40939]
[1723312235843,1.91661,2608.8,2608.3,2.4925]
[1723312236040,1.91661,2608.8,2608.2,3.07503]
[1723312236041,1.32676229,2608.7,2608.2,4.99201]
[1723312236245,3.0,2608.7,2608.2,3.07498]
[1723312236762,3.0,2608.7,2608.2,3.07497]
[1723312237068,3.0,2608.7,2608.3,1.91694]
[1723312237276,1.91661,2608.8,2608.3,1.91694]
[1723312237471,1.99106527,2608.8,2608.3,1.91694]
[1723312239465,3.07445527,2608.9,2608.4,4.40933]
[1723312239638,1.32667057,2608.8,2608.4,4.40933]
[1723312239842,3.07445527,2608.9,2608.4,4.40933]
[1723312240081,3.0,2608.9,2608.5,3.07479]
[1723312240237,7.3,2609.0,2608.6,0.56439582]
[1723312240580,7.3,2609.0,2608.7,1.91665]
[1723312240749,0.09174156,2608.9,2608.8,4.40906]
[1723312241242,0.09174156,2608.9,2608.8,2.4925]
[1723312241447,0.09174156,2608.9,2608.6,2.4925]
[1723312242135,0.09174156,2608.9,2608.4,1.91687]
[1723312242338,0.16619683,2608.9,2608.4,1.91687]
[1723312243159,0.16619683,2608.9,2608.5,1.91679]
[1723312243556,0.16619683,2608.9,2608.3,7.48428]
[1723312243871,0.16619683,2608.9,2608.4,1.91687]
[1723312244765,2.08271683,2608.9,2608.3,6.124129]
[1723312245687,2.08271683,2608.9,2608.3,8.041039]
[1723312246161,0.16619683,2608.9,2608.3,8.041039]
[1723312246898,0.16619683,2608.9,2608.4,1.91687]
[1723312249366,0.16619683,2608.9,2608.3,6.124129]
[1723312249599,0.16619683,2608.9,2608.3,8.041019]
[1723312249914,0.16619683,2608.9,2608.4,1.91687]
[1723312250123,0.16619683,2608.9,2608.5,1.9168]
[1723312252420,0.09174156,2608.9,2608.6,1.91672]
[1723312252575,0.09174156,2608.9,2608.7,1.91664]
[1723312252774,0.09174156,2608.9,2608.7,4.21811]
[1723312254027,0.09174156,2608.9,2608.7,4.2181]
[1723312255290,0.09174156,2608.9,2608.8,1.158]
[1723312255594,0.09174156,2608.9,2608.8,3.07459]
[1723312257127,4.91627,2609.3,2608.8,3.8537642]
[1723312257128,3.07445527,2609.3,2608.8,3.8537642]
[1723312257341,0.0887544,2608.9,2608.8,1.158]
[1723312257535,0.07445527,2609.2,2608.8,1.158]
[1723312258123,0.08898764,2609.1,2608.7,1.9166]
[1723312258525,0.08898764,2609.1,2608.8,1.91659]
[1723312260855,0.08898764,2609.1,2608.9,1.9931584]
[1723312261151,9.6337,2609.8,2609.0,7.29238]
[1723312261329,1.4007471,2609.7,2609.3,1.158]
[1723312261530,1.99039527,2609.7,2609.1,3.81122384]
[1723312261971,0.07445527,2609.7,2609.2,1.91626]
[1723312262335,7.3,2609.8,2609.3,3.4595]
[1723312262537,2.3337,2610.0,2609.5,3.07403]
[1723312262736,7.3,2610.1,2609.6,1.91597]
[1723312262979,2.93418452,2610.2,2609.6,1.91593]
[1723312263136,3.00863979,2610.2,2609.6,1.91593]
[1723312263335,4.23105577,2610.2,2609.6,4.21743]
[1723312264248,3.0,2610.1,2609.6,4.21743]
[1723312264448,3.07445527,2610.1,2609.7,1.91588]
[1723312264645,3.0,2610.1,2609.8,1.91584]
[1723312264861,0.07445527,2610.2,2609.8,1.91584]
[1723312265271,7.3,2610.4,2610.1,1.158]
[1723312265936,7.3,2610.4,2610.2,3.83101]
[1723312266276,2.3337,2610.7,2610.2,3.83101]
[1723312266470,2.40815527,2610.7,2610.2,3.83101]
[1723312266671,2.8404838,2610.7,2610.2,3.83101]
[1723312266891,0.5067838,2610.7,2610.3,1.91548]
[1723312267042,0.43232853,2610.7,2610.4,1.91539]
[1723312267242,0.43232853,2610.7,2610.2,1.9155]
[1723312267443,0.07445527,2610.6,2610.2,1.9155]
[1723312267963,0.07445527,2610.8,2610.2,1.9155]
[1723312268140,1.40515542,2610.8,2610.2,1.9155]
[1723312268350,0.07445527,2610.7,2610.2,1.9155]
[1723312268769,3.4917,2610.6,2609.8,1.9158]
[1723312268973,3.4917,2610.6,2609.9,1.91576]
[1723312268974,3.4310708,2610.5,2609.9,1.91576]
[1723312270067,3.4310708,2610.5,2609.9,3.07376]
[1723312270283,3.4310708,2610.5,2609.9,1.158]
[1723312270578,2.00008067,2610.4,2609.9,1.158]
[1723312270779,0.07445527,2610.3,2609.9,1.158]
[1723312270980,0.08444924,2610.3,2609.9,1.158]
[1723312271175,0.08444924,2610.3,2610.0,1.9157]
[1723312271387,0.08444924,2610.3,2610.0,1.91565]
[1723312271594,0.08444924,2610.3,2610.2,1.91556]
[1723312271757,3.07445527,2610.7,2610.2,1.91556]
[1723312271758,3.07445527,2610.7,2610.2,2.644388]
[1723312271964,0.0842876,2610.3,2610.2,1.91556]
[1723312272163,0.07445527,2610.7,2610.2,1.91556]
[1723312272375,0.07445527,2610.7,2610.3,1.91547]
[1723312272590,3.0,2610.8,2610.3,1.91543]
[1723312272898,5.4907,2610.9,2610.3,1.91543]
[1723312273560,5.4907,2610.9,2610.3,3.07343]
[1723312273762,7.40575,2610.9,2610.3,3.07343]
[1723312273955,5.4907,2610.9,2610.3,4.98886]
[1723312274183,5.4907,2610.9,2610.5,1.91534]
[1723312274184,3.0,2610.9,2610.5,1.91534]
[1723312274861,3.07445527,2610.9,2610.5,1.91534]
[1723312275569,3.07445527,2610.9,2610.3,3.80988743]
[1723312277330,3.07445527,2610.9,2610.3,5.72531743]
[1723312278347,3.07445527,2610.9,2610.3,3.80988743]
[1723312278526,3.0,2610.9,2610.5,2.2991]
[1723312278724,3.0,2610.9,2610.5,4.29099487]
[1723312279148,3.0,2610.9,2610.5,6.20628487]
[1723312279344,3.0,2610.9,2610.5,4.29099487]
[1723312279642,7.3,2611.0,2610.7,1.91512]
[1723312279858,5.4907,2611.3,2610.7,3.07312]
[1723312280054,3.07445527,2611.2,2610.7,3.07312]
[1723312280353,3.0,2611.2,2610.7,4.98827]
[1723312280561,3.0,2611.3,2610.8,0.50648704]
[1723312281257,3.0,2611.3,2610.9,2.2991]
[1723312281460,3.0,2611.3,2610.9,4.26325691]
[1723312281746,3.07445527,2611.4,2610.9,4.21414]
[1723312282320,1.91475,2611.3,2610.9,2.2991]
[1723312282623,3.07445527,2611.4,2610.8,0.50648704]
[1723312283025,1.91483,2611.2,2610.8,0.50648704]
[1723312283228,1.91498,2611.0,2610.5,4.98896336]
[1723312283454,2.56515527,2611.1,2610.5,4.98892336]
[1723312283652,1.98928527,2611.2,2610.5,4.98892336]
[1723312283862,1.98928527,2611.2,2610.6,0.49889234]
[1723312284570,0.07445527,2611.1,2610.6,0.49889234]
[1723312284954,1.91509,2610.9,2610.3,1.91545]
[1723312285274,1.98954527,2610.9,2610.3,1.91545]
[1723312285479,2.4907,2611.0,2610.3,3.83088]
[1723312285480,0.07740214,2610.8,2610.3,3.83088]
[1723312285773,4.40573,2611.0,2610.4,0.612998]
[1723312285774,6.39521527,2611.0,2610.4,0.612998]
[1723312285970,4.48018527,2611.0,2610.4,0.612998]
[1723312286173,0.0772885,2610.7,2610.4,0.612998]
[1723312286349,6.39521527,2611.0,2610.4,0.612998]
[1723312286550,1.99261577,2610.9,2610.5,0.2528428]
[1723312286752,0.15197104,2610.9,2610.5,0.2528428]
[1723312286957,2.06707104,2610.9,2610.5,0.2528428]
[1723312289876,0.07751577,2610.9,2610.5,0.2528428]
[1723312290180,0.07751577,2610.9,2610.6,2.4089]
[1723312290344,0.07445527,2611.3,2610.7,2.44944718]
[1723312290549,0.07785662,2611.2,2610.7,2.37284728]
[1723312290797,0.07785662,2611.2,2610.7,4.28798728]
[1723312291008,0.07785662,2611.2,2610.7,2.37284728]
[1723312291298,0.07785662,2611.2,2610.8,0.47817473]
[1723312291611,1.98920527,2611.3,2610.8,0.47817473]
[1723312291982,0.07781156,2611.2,2610.8,0.47817473]
[1723312292287,1.98920527,2611.3,2610.8,0.47817473]
[1723312292620,0.07781156,2611.2,2610.8,0.47817473]
[1723312292818,0.07445527,2611.3,2610.9,0.4766162]
[1723312292973,0.07771484,2611.1,2610.9,2.3916462]
[1723312293312,4.91471,2611.4,2610.9,1.91503]
[1723312293482,4.64140708,2614.5,2610.9,3.83003]
[1723312293483,0.07760123,2611.0,2610.9,3.83003]
[1723312293677,4.98891527,2611.7,2611.1,1.91488]
[1723312294088,0.07832222,2611.6,2611.1,6.23866]
[1723312294272,0.07832222,2611.6,2611.1,4.32378]
[1723312294468,0.07832222,2611.6,2611.2,0.432378]
[1723312295681,0.07832222,2611.6,2611.2,2.347158]
[1723312296082,0.07832222,2611.6,2611.2,0.432378]
[1723312296483,1.99286222,2611.6,2610.9,4.763013]
[1723312296886,1.99286222,2611.6,2611.0,1.91495]
[1723312297078,1.99286222,2611.6,2611.1,1.91489]
[1723312297670,1.99286222,2611.6,2611.1,4.32379]
[1723312297911,0.07832222,2611.6,2611.2,0.432379]
[1723312298213,0.07832222,2611.6,2611.2,2.347149]
[1723312299086,0.07832222,2611.6,2611.2,2.347199]
[1723312300098,0.07832222,2611.6,2611.3,1.91475]
[1723312302509,0.07832222,2611.6,2611.2,0.432379]
[1723312303978,9.6571,2611.9,2611.3,1.9147]
[1723312304411,0.15310975,2611.8,2611.3,1.9147]
[1723312304909,0.07865448,2611.8,2611.4,0.07657865]
[1723312305087,3.07865448,2611.8,2611.4,2.34910442]
[1723312305287,3.07865448,2611.8,2611.4,2.27252577]
[1723312306933,3.07865448,2611.8,2611.4,4.68142577]
[1723312307138,3.07865448,2611.8,2611.4,2.76676577]
[1723312307636,0.07865448,2611.8,2611.4,2.76676577]
[1723312307824,0.07865448,2611.8,2611.5,0.58364658]
[1723312309014,3.0,2612.0,2611.5,2.49819658]
[1723312309214,0.07876803,2611.9,2611.5,2.49819658]
[1723312309431,0.07876803,2611.9,2611.5,3.65319658]
[1723312309741,0.07876803,2611.9,2611.6,0.60620966]
[1723312310539,0.07445527,2611.8,2611.2,1.91478]
[1723312310731,4.21177,2611.7,2611.2,1.91478]
[1723312310936,4.29037247,2611.7,2611.2,1.91478]
[1723312311609,2.37590247,2611.7,2611.3,1.91474]
[1723312311840,0.07860247,2611.7,2611.4,0.382952]
[1723312312036,3.07445527,2611.8,2611.4,0.382952]
[1723312312211,0.07859684,2611.7,2611.4,0.382952]
[1723312312523,1.98892527,2611.7,2611.1,3.644]
[1723312312725,2.37578327,2611.6,2611.1,1.155]
[1723312312911,0.07445527,2611.5,2611.1,1.155]
[1723312313337,0.07823923,2611.4,2611.1,1.155]
[1723312313561,1.9148,2611.3,2610.7,2.489]
[1723312313779,1.98929527,2611.2,2610.7,2.489]
[1723312314075,0.15259864,2611.2,2610.7,2.489]
[1723312314371,0.07814337,2611.2,2610.8,0.55592]
[1723312314571,0.07814337,2611.2,2610.8,1.71092]
[1723312314766,2.37175527,2611.3,2610.8,1.71092]
[1723312315080,0.07813775,2611.2,2610.8,3.62599]
[1723312315296,3.0,2611.5,2611.0,3.06991]
[1723312315438,3.0,2611.5,2611.1,2.489]
[1723312315641,4.98898527,2611.6,2611.1,2.489]
[1723312316171,4.98898527,2611.6,2610.8,3.07007]
[1723312316172,2.2973,2611.5,2610.8,3.07007]
[1723312316374,1.98917527,2611.4,2610.8,1.155]
[1723312316541,1.9148,2611.3,2610.8,1.155]
[1723312316741,4.98917527,2611.4,2610.8,3.81748]
[1723312318582,3.07445527,2611.4,2610.9,1.91504]
[1723312318897,0.07445527,2611.4,2610.9,2.737192]
[1723312319537,0.07445527,2611.4,2611.0,1.91495]
[1723312319739,5.2973,2611.5,2611.0,1.91495]
[1723312319982,5.37175527,2611.5,2611.0,1.91495]
[1723312320185,1.32542263,2611.4,2611.0,3.6506342]
[1723312320371,3.0,2611.4,2611.1,1.91485]
[1723312321048,3.07445527,2611.6,2611.0,3.6506342]
[1723312321252,1.32540405,2611.5,2611.0,3.6506342]
[1723312321614,4.98898527,2611.6,2611.0,3.6506342]
[1723312321949,1.32541058,2611.5,2611.0,3.6506342]
[1723312322157,1.32541058,2611.4,2611.0,5.5655542]
[1723312322357,4.98898527,2611.6,2611.1,1.91488]
[1723312322358,3.07445527,2611.6,2611.1,1.91488]
[1723312322508,1.32539592,2611.5,2611.1,1.91488]
[1723312322708,1.32539592,2611.4,2611.1,2.47143142]
[1723312322935,1.32539592,2611.5,2611.1,2.47143142]
[1723312323206,1.32539592,2611.5,2611.1,1.91488]
[1723312324047,1.32539592,2611.5,2610.8,1.91508]
[1723312324048,1.98913527,2611.4,2610.8,5.55908]
[1723312324256,1.32548875,2611.3,2610.6,3.0702]
[1723312324550,8.44143527,2611.4,2610.8,1.9151]
[1723312324551,0.07445527,2611.2,2610.8,1.9151]
[1723312324843,1.98920527,2611.3,2610.8,1.9151]
[1723312325058,0.07445527,2611.2,2610.8,2.41363]
[1723312325219,0.07445527,2611.2,2610.8,0.49853]
[1723312325220,1.98930527,2611.2,2610.8,0.49853]
[1723312325760,1.91492,2611.1,2610.5,2.489]
[1723312325969,0.07445527,2611.0,2610.5,2.489]
[1723312326106,1.98943527,2611.0,2610.5,4.40434]
[1723312326454,4.21239,2610.9,2610.5,1.290934]
[1723312326649,0.07445527,2610.8,2610.3,4.40448]
[1723312327061,4.28684527,2610.9,2610.3,4.40448]
[1723312327364,4.28684527,2610.9,2610.3,4.40446]
[1723312327512,4.28684527,2610.9,2610.3,1.91546]
[1723312328225,4.28684527,2610.9,2610.4,0.383097]
[1723312329177,1.91519,2610.7,2610.2,1.91555]
[1723312329313,1.91519,2610.8,2610.2,1.91555]
[1723312329513,3.83038,2610.8,2610.2,2.547571]
[1723312329812,1.91519,2610.8,2610.2,2.547571]
[1723312330330,0.07445527,2610.7,2610.2,2.547571]
[1723312330508,0.15178468,2610.7,2610.2,4.463081]
[1723312330711,0.15178468,2610.7,2610.3,0.6952081]
[1723312332426,0.07732941,2610.7,2610.4,1.91539]
[1723312332945,0.07721576,2610.6,2610.4,1.91539]
[1723312333337,0.07445527,2610.8,2610.4,1.91539]
[1723312333555,3.0,2611.0,2610.5,0.07272431]
[1723312333725,0.07722058,2610.7,2610.6,1.9152]
[1723312333930,4.98931527,2611.2,2610.7,1.91517]
[1723312334130,3.0,2611.2,2610.7,1.91514]
[1723312334381,1.91472,2611.4,2610.8,2.40360264]
[1723312334544,0.07445527,2611.3,2610.8,2.518514]
[1723312335539,4.98921527,2611.3,2610.8,2.518514]
[1723312335740,0.07445527,2611.2,2610.8,2.518514]
[1723312336272,3.0,2611.3,2610.8,4.433584]
[1723312336273,0.07445527,2611.3,2610.8,4.433584]
[1723312336468,0.07445527,2611.3,2610.9,2.5499124]
[1723312336714,3.0,2611.4,2611.0,1.91493]
[1723312336865,0.07445527,2611.5,2611.0,1.91493]
[1723312337861,0.07445527,2611.5,2611.0,2.53927273]
[1723312338860,4.91455,2611.6,2611.0,2.53927273]
[1723312339058,1.32541601,2611.5,2611.0,2.53927273]
[1723312339272,4.32541601,2611.5,2611.0,2.53927273]
[1723312339565,4.32541601,2611.5,2611.1,1.91488]
[1723312339566,3.0,2611.5,2611.1,1.91488]
[1723312339807,3.0,2611.7,2611.2,4.18292]
[1723312340094,1.32538263,2611.6,2611.2,6.09769]
[1723312340400,9.21442,2611.8,2611.2,4.18287]
[1723312340561,1.3252598,2611.7,2611.2,4.18287]
[1723312340758,9.21442,2611.8,2611.2,4.90039172]
[1723312341114,1.32527233,2611.7,2611.2,4.90039172]
[1723312341277,9.21442,2611.8,2611.2,4.90039172]
[1723312341479,3.0,2611.7,2611.4,1.91465]
[1723312342679,3.0,2611.7,2611.2,4.90040172]
[1723312342864,3.0,2611.7,2611.3,0.53534762]